Workbook

Sheet LEARNING FACTORY
A1: CSIR: BUILDING 17A
A2: COUNCIL FOR SCIENTIFIC AND INDUSTRIAL RESEARCH
A3: TYPE OF BULK SERVICES (LEARNING FACTORY TO SUPPORT MANUFACTURING - BUILDING 17A SECOND FLOOR)
A4: BILL OF QUANTITIES - LEARNING FACTORY TO SUPPORT MANUFACTURING
A7: DESCRIPTION | B7: UNIT | C7: QUANTITY | E7: QUANTITY | F7: RATE | I7: QUANTITY | K7: QUANTITY | L7: RATE | M7: AMOUNT
A9: LEARNING FACTORY - BUILDING 17A
A11: SECTION 1.
A13: PRELIMINARY AND GENERAL
A15: FIXED CHARGE ITEMS
A17: Contractual requirements.
A19: Insurances | B19: SUM | C19: 1 | E19: 1 | I19: 1 | K19: 1
A21: Programming | B21: SUM | C21: 1 | E21: 1 | I21: 1 | K21: 1
A23: Performance Security | B23: SUM | C23: 1 | E23: 1 | I23: 1 | K23: 1
A25: Retention Guarantee | B25: SUM | C25: 1 | E25: 1 | I25: 1 | K25: 1
A27: Establishment of Facilities on the Site
A29: Facilities for Engineer
A31: Equipment for the Engineer's Staff | B31: SUM | C31: 1 | E31: 1 | I31: 1 | K31: 1
A33: Facilities for Contractor | B33: H4 | E33: 1 | K33: 1
A35: Offices and Storage Sheds | B35: SUM | C35: 1 | E35: 1 | I35: 1 | K35: 1
E36: 1
A37: Workshops | B37: SUM | C37: 1 | E37: 1 | I37: 1 | K37: 1
A39: Site Establishment | B39: SUM | C39: 1 | E39: 1 | I39: 1 | K39: 1
A41: Living Accomodation - The Contractor to supply a breakdown of | B41: SUM | C41: 1 | E41: 1 | I41: 1 | K41: 1
A42: the different categories namley: Supervision, Skilled Labor,
A43: Semi Skilled Labour and Unskilled Labour
A45: Laboratory Facilities | B45: SUM | C45: 1 | E45: 1 | I45: 1 | K45: 1
A47: Ablution and Latrine Facilities | B47: SUM | C47: 1 | E47: 1 | I47: 1 | K47: 1
A49: Tools and Equipment | B49: SUM | C49: 1 | E49: 1 | I49: 1 | K49: 1
A51: Water Supplies | B51: SUM | C51: 1 | E51: 1 | I51: 1 | K51: 1
A53: Electric Power | B53: SUM | C53: 1 | E53: 1 | I53: 1 | K53: 1
A55: Communication | B55: SUM | C55: 1 | E55: 1 | I55: 1 | K55: 1
A57: Air Supplies | B57: SUM | C57: 1 | E57: 1 | I57: 1 | K57: 1
A59: Dealing with Water | B59: SUM | C59: 1 | E59: 1 | I59: 1 | K59: 1
A61: Access | B61: SUM | C61: 1 | E61: 1 | I61: 1 | K61: 1
A63: Facilities Requiring Special Attention
A65: Security | B65: SUM | C65: 1 | E65: 1 | I65: 1 | K65: 1
A67: Safety | B67: SUM | C67: 1 | E67: 1 | I67: 1 | K67: 1
A69: Samples and certification of materials | B69: SUM | C69: 1 | E69: 1 | I69: 1 | K69: 1
A71: Testing Authority | B71: SUM | C71: 1 | E71: 1 | I71: 1 | K71: 1
A73: Other Contractors | B73: SUM | C73: 1 | E73: 1 | I73: 1 | K73: 1
A75: Quality Assurance | B75: SUM | C75: 1 | E75: 1 | I75: 1 | K75: 1
A77: Orders and Indents | B77: SUM | C77: 1 | E77: 1 | I77: 1 | K77: 1
A79: Site Meetings | B79: SUM | C79: 1 | E79: 1 | I79: 1 | K79: 1
A81: Plant for the Works | B81: SUM | C81: 1 | E81: 1 | I81: 1 | K81: 1
A83: Transport on the site | B83: SUM | C83: 1 | E83: 1 | I83: 1 | K83: 1
A85: Transport of the Workforce to and from the site | B85: SUM | C85: 1 | E85: 1 | I85: 1 | K85: 1
A87: Supervision for the duration of the construction | B87: SUM | C87: 1 | E87: 1 | I87: 1 | K87: 1
A89: Company and head office overheads costs for the duration of | B89: SUM | C89: 1 | E89: 1 | I89: 1 | K89: 1
A90: the contract works
A92: Other fixed charge obligation - Contractor to submit details | B92: SUM | C92: 1 | E92: 1 | I92: 1 | K92: 1
A94: Remove site establishment on completion | B94: SUM | C94: 1 | E94: 1 | I94: 1 | K94: 1
A96: VALUE RELATED ITEMS
A98: Contractual requirements.
A100: Insurances | B100: SUM | C100: 1 | E100: 1 | I100: 1 | K100: 1
A102: Programming | B102: SUM | C102: 1 | E102: 1 | I102: 1 | K102: 1
A104: Performance Security | B104: SUM | C104: 1 | E104: 1 | I104: 1 | K104: 1
A106: Retention Guarantee | B106: SUM | C106: 1 | E106: 1 | I106: 1 | K106: 1
A108: Establishment of Facilities on the Site
A110: Facilities for Engineer
A112: Equipment for the Engineer's Staff | B112: SUM | C112: 1 | E112: 1 | I112: 1 | K112: 1
A114: Facilities for Contractor
A116: Offices and Storage Sheds | B116: SUM | C116: 1 | E116: 1 | I116: 1 | K116: 1
A118: Workshops | B118: SUM | C118: 1 | E118: 1 | I118: 1 | K118: 1
A120: Site Establishment | B120: SUM | C120: 1 | E120: 1 | I120: 1 | K120: 1
A122: Living Accomodation - The Contractor to supply a breakdown of | B122: SUM | C122: 1 | E122: 1 | I122: 1 | K122: 1
A123: the different categories namley: Supervision, Skilled Labor,
A124: Semi Skilled Labour and Unskilled Labour
A126: Laboratory Facilities | B126: SUM | C126: 1 | E126: 1 | I126: 1 | K126: 1
A128: Ablution and Latrine Facilities | B128: SUM | C128: 1 | E128: 1 | I128: 1 | K128: 1
A130: Tools and Equipment | B130: SUM | C130: 1 | E130: 1 | I130: 1 | K130: 1
A132: Water Supplies | B132: SUM | C132: 1 | E132: 1 | I132: 1 | K132: 1
A134: Electric Power | B134: SUM | C134: 1 | E134: 1 | I134: 1 | K134: 1
A136: Communication | B136: SUM | C136: 1 | E136: 1 | I136: 1 | K136: 1
A138: Air Supplies | B138: SUM | C138: 1 | E138: 1 | I138: 1 | K138: 1
A140: Dealing with Water | B140: SUM | C140: 1 | E140: 1 | I140: 1 | K140: 1
A142: Access | B142: SUM | C142: 1 | E142: 1 | I142: 1 | K142: 1
A144: Facilities Requiring Special Attention
A146: Security | B146: SUM | C146: 1 | E146: 1 | I146: 1 | K146: 1
A148: Safety | B148: SUM | C148: 1 | E148: 1 | I148: 1 | K148: 1
A150: Samples and certification of materials | B150: SUM | C150: 1 | E150: 1 | I150: 1 | K150: 1
A152: Testing Authority | B152: SUM | C152: 1 | E152: 1 | I152: 1 | K152: 1
A154: Other Contractors | B154: SUM | C154: 1 | E154: 1 | I154: 1 | K154: 1
A156: Quality Assurance | B156: SUM | C156: 1 | E156: 1 | I156: 1 | K156: 1
A158: Orders and Indents | B158: SUM | C158: 1 | E158: 1 | I158: 1 | K158: 1
A160: Site Meetings | B160: SUM | C160: 1 | E160: 1 | I160: 1 | K160: 1
A162: Plant for the Works | B162: SUM | C162: 1 | E162: 1 | I162: 1 | K162: 1
A164: Transport on the site | B164: SUM | C164: 1 | E164: 1 | I164: 1 | K164: 1
A166: Transport of the Workforce to and from the site | B166: SUM | C166: 1 | E166: 1 | I166: 1 | K166: 1
A168: Supervision for the duration of the construction | B168: SUM | C168: 1 | E168: 1 | I168: 1 | K168: 1
A170: Company and head office overheads costs for the duration of | B170: SUM | C170: 1 | E170: 1 | I170: 1 | K170: 1
A171: the contract works
A173: Other value related obligations - Contractor to submit details | B173: SUM | C173: 1 | E173: 1 | I173: 1 | K173: 1
A175: Remove site establishment on completion | B175: SUM | C175: 1 | E175: 1 | I175: 1 | K175: 1
A177: TIME RELATED ITEMS
A179: Contractual requirements.
A181: Insurances | B181: SUM | C181: 1 | E181: 1 | I181: 1 | K181: 1
A183: Programming | B183: SUM | C183: 1 | E183: 1 | I183: 1 | K183: 1
A185: Performance Security | B185: SUM | C185: 1 | E185: 1 | I185: 1 | K185: 1
A187: Retention Guarantee | B187: SUM | C187: 1 | E187: 1 | I187: 1 | K187: 1
A189: Establishment of Facilities on the Site
A191: Facilities for Engineer
A193: Equipment for the Engineer's Staff | B193: SUM | C193: 1 | E193: 1 | I193: 1 | K193: 1
A195: Facilities for Contractor
A197: Offices and Storage Sheds | B197: SUM | C197: 1 | E197: 1 | I197: 1 | K197: 1
A199: Workshops | B199: SUM | C199: 1 | E199: 1 | I199: 1 | K199: 1
A201: Site Establishment | B201: SUM | C201: 1 | E201: 1 | I201: 1 | K201: 1
A203: Living Accomodation - The Contractor to supply a breakdown of | B203: SUM | C203: 1 | E203: 1 | I203: 1 | K203: 1
A204: the different categories namley: Supervision, Skilled Labor,
A205: Semi Skilled Labour and Unskilled Labour
A207: Laboratory Facilities | B207: SUM | C207: 1 | E207: 1 | I207: 1 | K207: 1
A209: Ablution and Latrine Facilities | B209: SUM | C209: 1 | E209: 1 | I209: 1 | K209: 1
A211: Tools and Equipment | B211: SUM | C211: 1 | E211: 1 | I211: 1 | K211: 1
A213: Water Supplies | B213: SUM | C213: 1 | E213: 1 | I213: 1 | K213: 1
A215: Electric Power | B215: SUM | C215: 1 | E215: 1 | I215: 1 | K215: 1
A217: Communication | B217: SUM | C217: 1 | E217: 1 | I217: 1 | K217: 1
A219: Air Supplies | B219: SUM | C219: 1 | E219: 1 | I219: 1 | K219: 1
A221: Dealing with Water | B221: SUM | C221: 1 | E221: 1 | I221: 1 | K221: 1
A223: Access | B223: SUM | C223: 1 | E223: 1 | I223: 1 | K223: 1
A225: Facilities Requiring Special Attention
A227: Security | B227: SUM | C227: 1 | E227: 1 | I227: 1 | K227: 1
A229: Safety | B229: SUM | C229: 1 | E229: 1 | I229: 1 | K229: 1
A231: Samples and certification of materials | B231: SUM | C231: 1 | E231: 1 | I231: 1 | K231: 1
A233: Testing Authority | B233: SUM | C233: 1 | E233: 1 | I233: 1 | K233: 1
A235: Other Contractors | B235: SUM | C235: 1 | E235: 1 | I235: 1 | K235: 1
A237: Quality Assurance | B237: SUM | C237: 1 | E237: 1 | I237: 1 | K237: 1
A239: Orders and Indents | B239: SUM | C239: 1 | E239: 1 | I239: 1 | K239: 1
A241: Site Meetings | B241: SUM | C241: 1 | E241: 1 | I241: 1 | K241: 1
A243: Plant for the Works | B243: SUM | C243: 1 | E243: 1 | I243: 1 | K243: 1
A245: Transport on the site | B245: SUM | C245: 1 | E245: 1 | I245: 1 | K245: 1
A247: Transport of the Workforce to and from the site | B247: SUM | C247: 1 | E247: 1 | I247: 1 | K247: 1
A249: Supervision for the duration of the construction | B249: SUM | C249: 1 | E249: 1 | I249: 1 | K249: 1
A251: Company and head office overheads costs for the duration of | B251: SUM | E251: 1 | I251: 1 | K251: 1
A252: the contract works
A254: Other time related obligation - Contractor to submit details | B254: SUM | C254: 1 | E254: 1 | I254: 1 | K254: 1
A256: Remove site establishment on completion | B256: SUM | C256: 1 | E256: 1 | I256: 1 | K256: 1
A259: TOTAL SECTION 1- BILL NO. 01- PRELIMINARIES AND GENERAL
A262: SECTION 2.
A264: BUILDING WORKS - RENOVATIONS AND REFURBISHMENTS OF THE LEARNING FACTORY
A266: MEASURED WORKS
A268: BILL NO. 01
A270: DEMOLITIONS AND PREPARATORY WORK
A272: REMOVAL OF FLOOR COVERING
A274: Carefully take out and remove the existing vinyl flooring send to the salvage yard, make good the floor to receive new floor covering | B274: m2 | C274: =+ET274 -> 361.50 | D274: =+C274*15% -> 54.23 | E274: =+ET274+ET275 -> 361.50 | F274: 65.00 | G274: =+F274*25% -> 16.25 | H274: =+E274*5% -> 18.08 | I274: =+ET274 -> 362 | J274: =+I274*10% -> 36.15 | K274: 398 | ET274: =+EU274*EV274*EW274*EX274 -> 361.50 | EU274: 22.88 | EV274: 15.8 | EW274: 1 | EX274: 1
A276: REMOVAL OF THE EXISTING STAIRCASE
A278: Carefully take out and remove the existing staircase and send to the salvage yard, make good the wall to receive new staircase as per the engineers spec | B278: Item | E278: =+ET278 -> 1.00 | H278: =+E278*5% -> 0.05 | I278: 1 | J278: =+I278*10% -> 0.10 | K278: 1 | ET278: 1.00 | EU278: 1 | EV278: 1 | EW278: 1 | EX278: 1
A280: REMOVAL OF EXISTING ROLLERSHUTTER DOOR
A282: Take down and remove the existing roller shutter door, 3200x3370mm and send it to the salvage yard | B282: No | I282: 1 | J282: =+I282*10% -> 0.10 | K282: 1
A284: REMOVAL OF THE EXISTING CARPENTRY FITTINGS
A286: Carefully take out and remove existing double doors, 3200 x 3370mm and send to the salvage. | B286: No | I286: 1 | J286: =+I286*10% -> 0.10 | K286: 1
A288: BREAKING DOWN AND REMOVAL OF BRICK WALL
A290: Breaking down of the 220mm parapet wall, keep as much and many of existing facebriecks for use. Contractor to rebuild the parapet wall with extra reinforcement to allow for weight of concrete coping and flood light. Existing coping to be reused where possible. (Bricking up measured alsewhere). | B290: m2 | I290: =+ET290 -> 8 | J290: =+I290*10% -> 0.78 | K290: 9 | ET290: =+EU290*EV290*EW290*EX290 -> 7.80 | EU290: 6 | EV290: 1.3 | EW290: 1 | EX290: 1
EZ291: 222
A292: REMOVAL OF STEEL BALUSTRADING
A294: Dismantle and remove the existing bakustrading, 1000mm high and send to the salvage yard | B294: m | I294: 15 | J294: =+I294*10% -> 1.50 | K294: 17
EW295: 0
A296: REMOVAL OF SANITARY FITTINGS
A298: Cutting off and removal of the plumbing water pipes and send to the salvage yard (surface mounted) | B298: Item | I298: 1 | J298: =+I298*10% -> 0.10 | K298: 1
A300: Remove existing basin, cut off plumbing and remove pipe work (surface mounted) | B300: No | I300: 1 | J300: =+I300*10% -> 0.10 | K300: 1
A302: EXISTING CEILING TREATMENT
A304: Clean, make good and paint the existing "COFFER"slab ceiling complete, as per Architect's recommendation. (Paint measured elsewhere) | B304: m2 | I304: 362 | J304: =+I304*10% -> 36.15 | K304: 398
A306: WINDOW STRIPPING
A308: Strip existing windows and repaint white while existing. (Paint measure elswhere) | B308: m2 | I308: 131 | J308: =+I308*10% -> 13.10 | K308: 144
A310: DEEP CLEANING
A312: Allow for deep cleaning in and around the structure | B312: Item | C312: 1.00 | E312: =+C312+D312 -> 1.00 | F312: 10,000.00 | G312: =+F312*25% -> 2,500.00 | I312: 1 | J312: =+I312*10% -> 0.10 | K312: 1
A314: TOTAL SECTION 2 - BILL NO. 01- ALTERATIONS
A317: SECTION 2.
A319: BUILDING WORKS - RENOVATIONS AND REFURBISHMENTS OF THE LEARNING FACTORY
A321: MEASURED WORKS
A323: BILL NO. 02
A325: EARTHWORKS
A327: NOTE: Tenderers are advised to study the Model
A328: Preambles for Trades 2008 published by the
A329: Association of South African Quantity Surveyors
A331: SUPPLEMENTARY PREAMBLES
A333: Nature of ground
A335: Trial holes indicate that the nature of the ground is silty
A336: clay to a depth of approximately 500mm with fine to
A337: medium loose sandy material below, therefore "earth"
A339: Subterranean water
A341: No subterranean water is expected
A343: Excavation for working space in rock
A345: Notwithstanding clause 11 page 8 of the Standard
A346: System of Measuring Building Work, excavation for
A347: working space in rock will be measured in cubic metres
A348: to the extent executed and given as "extra over" bulk
A349: excavation or trench and hole excavation as the case
A350: may be
A352: Carting away of excavated material
A354: Descriptions of carting away of excavated material shall
A355: be deemed to include loading excavated material onto
A356: trucks directly from the excavations or, alternatively,from
A357: stock piles situated on the building site
A359: Filling
A361: Notwithstanding the reference to prescribed multiple
A362: handling in clause 1 page 6 of the Standard System of
A363: Measuring Building Work, prices for filling and backfilling
A364: shall include for all selection and any necessary multiple
A365: handling of material
A367: EXCAVATION, FILLING, ETC
A368: EXCAVATIONS, ETC
... 741 more rows

Sheet Sheet1
L11: 63500
L12: 13866
L15: =SUM(L10:L14) -> 77366 | N15: =+L15*25% -> 19341.5
M17: =+L15+N15 -> 96707.5
Q19: =+M20/2 -> 78211.1
M20: 156422.2
N22: =+M20-M17 -> 59714.7

Sheet Sheet3 (hidden)
F6: Vehicle access controls ( Please tick where applicable
F7: Boom with registration | G7: Car search | J7: Specify other……………………….
F9: Is it functioning properly? | H9: Yes | I9: No
K19: Vehicle access controls ( Please tick where applicable
K20: Boom with registration | L20: Car search | O20: Specify other……………………….
K22: Is it functioning properly? | M22: Yes | N22: No
